[Event "Austrian Bundesliga 2023-24"]
[Site "Austria"]
[Date "2024.03.23"]
[Round "10.21"]
[White "Krassowizkij, Jaroslaw"]
[Black "Votava, Jan"]
[Result "1-0"]
[ECO "C55"]
[WhiteElo "2430"]
[BlackElo "2441"]
[Annotator "RC"]
[PlyCount "135"]
[EventDate "2023.10.21"]
[EventType "team-tourn"]
[EventCountry "AUT"]
[SourceTitle "playchess.com"]
[Source "ChessBase"]
[SourceQuality "1"]
[TimeControl "40/5400+30:1800+30"]

1. e4 {[%emt 0:00:03]} e5 {[%emt 0:00:57]} 2. Nf3 {[%emt 0:00:12]} Nc6 {[%emt 0:00:15]} 3. Bc4 {[%emt 0:00:05]} Nf6 {[%emt 0:00:13]} 4. d3 {[%emt 0:00:04]} Be7 {[%emt 0:01:07]} 5. O-O {[%emt 0:00:11]} O-O {[%emt 0:00:12]} 6. Re1 {[%emt 0:00:05]} d6 {[%emt 0:01:33]} 7. a4 {[%emt 0:00:06]} Na5 {[%emt 0:03:06]} 8. Ba2 {[%emt 0:00:08]} c5 {[%emt 0:00:17]} 9. c3 {[%emt 0:00:06]} Nc6 {[%emt 0:06:12]} 10. Na3 {[%emt 0:00:31]} h6 {[%emt 0:05:58]} 11. h3 {[%emt 0:10:45]} Be6 {[%emt 0:17:21]} 12. Bxe6 {[%emt 0:00:06]} fxe6 {[%emt 0:00:02]} 13. Nc4 {[%emt 0:01:58]} Qc7 {[%emt 0:05:44]} 14. Bd2 {[%emt 0:01:29]} Nb8 {[%emt 0:15:32]} 15. Ne3 {[%emt 0:17:00]} Re8 {[%emt 0:00:50]} 16. b4 {[%emt 0:15:26]} Nbd7 {[%emt 0:00:40]} 17. Qb3 {[%emt 0:01:23]} Bf8 {[%emt 0:00:18]} 18. a5 {[%emt 0:02:40]} Rac8 {[%emt 0:01:07]} 19. b5 {[%emt 0:05:14]} Kh8 {[%emt 0:04:29]} 20. Reb1 {[%emt 0:12:47]} Qd8 {[%emt 0:06:16]} 21. Nc4 {[%emt 0:03:52]} Qe7 {[%emt 0:00:40]} 22. Re1 {[%emt 0:01:19]} Qf7 {[%emt 0:02:54]} 23. a6 {[%emt 0:05:44]} b6 {[%emt 0:00:12]} 24. Rac1 {[%emt 0:03:35]} Qh5 {[%emt 0:09:14]} 25. Qd1 {[%emt 0:04:54]} d5 {[%emt 0:04:52]} 26. Ne3 {[%emt 0:00:15]} c4 {[%emt 0:03:58]} 27. exd5 {[%emt 0:05:07]} cxd3 {[%emt 0:00:58]} 28. dxe6 {[%emt 0:01:16]} Rxe6 {[%emt 0:01:15]} 29. Ng4 {[%emt 0:04:40]} Nxg4 {[%emt 0:02:58]} 30. hxg4 {[%emt 0:00:02]} Qxg4 {[%emt 0:00:49]} 31. Nd4 {[%emt 0:00:19]} Qxd1 {[%emt 0:00:55]} 32. Rcxd1 {[%emt 0:00:01]} Rf6 {[%emt 0:04:49]} 33. Nc6 {[%emt 0:00:05]} Rcxc6 {[%emt 0:00:34]} 34. bxc6 {[%emt 0:00:03]} Rxc6 {[%emt 0:00:06]} 35. Re3 {[%emt 0:04:22]} Nc5 {[%emt 0:00:29]} 36. Rxe5 {[%emt 0:00:12]} Nxa6 {[%emt 0:00:55]} 37. Ra1 {[%emt 0:01:38]} Nc5 {[%emt 0:00:29]} 38. Rxa7 {[%emt 0:00:18]} Nb3 {[%emt 0:00:40]} 39. Ra2 {[%emt 0:00:57]} Nxd2 {[%emt 0:00:27]} 40. Rxd2 {[%emt 0:00:00]} Rxc3 {[%emt 0:00:00]} 41. Re8 {[%emt 0:07:40]} Kg8 {[%emt 0:00:46]} 42. Rd8 {[%emt 0:00:08]} h5 {[%emt 0:26:00]} 43. R2xd3 {[%emt 0:08:07]} Rxd3 {[%emt 0:00:07]} 44. Rxd3 {[%emt 0:00:03]} Kh7 {[%emt 0:01:59]} 45. Re3 {[%emt 0:04:48]} Bc5 {[%emt 0:00:34]} 46. Re6 {[%emt 0:00:04]} g6 {[%emt 0:00:52]} 47. Kf1 {[%emt 0:00:07]} Kg7 {[%emt 0:01:42]} 48. Ke2 {[%emt 0:00:17]} Kf7 {[%emt 0:01:10]} 49. Rc6 {[%emt 0:00:06]} Kg7 {[%emt 0:00:06]} 50. f3 {[%emt 0:00:18]} Kf7 {[%emt 0:00:05]} 51. Kd3 {[%emt 0:00:04]} Kg7 {[%emt 0:00:04]} 52. Ke4 {[%emt 0:00:15]} Kf7 {[%emt 0:00:53]} 53. Ke5 {[%emt 0:01:37]} Kg7 {[%emt 0:00:02]} 54. Ke6 {[%emt 0:08:15]} Be3 {[%emt 0:01:21]} 55. Rc7+ {[%emt 0:01:18]} Kh6 {[%emt 0:00:02]} 56. Kf7 {[%emt 0:00:13]} g5 {[%emt 0:00:35]} 57. Rc6+ {[%emt 0:02:16]} Kh7 {[%emt 0:00:02]} 58. Kf6 {[%emt 0:00:36]} g4 {[%emt 0:01:18]} 59. Re6 {[%emt 0:04:02]} Bd4+ {[%emt 0:02:11]} 60. Kg5 {[%emt 0:00:08]} gxf3 {[%emt 0:00:33]} 61. gxf3 {[%emt 0:00:55]} h4 {[%emt 0:00:32]} 62. Kxh4 {[%emt 0:00:14]} Kg7 {[%emt 0:00:12]} 63. Kg5 {[%emt 0:00:40]} Kf7 {[%emt 0:00:01]} 64. Kf5 {[%emt 0:00:10]} b5 {[%emt 0:00:38]} 65. Rd6 {[%emt 0:00:07]} Bc3 {[%emt 0:00:29]} 66. Rd7+ {[%emt 0:00:14]} Ke8 {[%emt 0:00:14]} 67. Ke6 {[%emt 0:00:26]} b4 {[%emt 0:00:11]} 68. f4 {[%emt 0:00:27]} 1-0

[Event "Austrian Bundesliga 2023-24"]
[Site "Austria"]
[Date "2024.03.23"]
[Round "10.22"]
[White "Lanka, Zigurds"]
[Black "Richter, Nils"]
[Result "1/2-1/2"]
[ECO "B47"]
[WhiteElo "2357"]
[BlackElo "2400"]
[Annotator "TA"]
[PlyCount "90"]
[EventDate "2023.10.21"]
[EventType "team-tourn"]
[EventCountry "AUT"]
[SourceTitle "playchess.com"]
[Source "ChessBase"]
[SourceQuality "1"]
[TimeControl "40/5400+30:1800+30"]

{[%evp 17,90,0,7,0,27,0,41,0,0,0,0,0,0,0,8,0,0,0,23,10,30,0,0,0,0,-4,0,0,0,0,68,41,72,73,78,0,61,44,95,82,127,133,424,125,189,122,105,108,107,103,106,109,181,41,44,-1,0,-58,-41,-79,-19,-13,-6,-13,-11,-62,-18,-34,-12,-79,0,-18,-18,-16,-19]} 1. e4 {[%emt 0:00:06]} c5 {[%emt 0:00:06]} 2. Nc3 {[%emt 0:00:24]} e6 {[%emt 0:01:08]} 3. Nf3 {[%emt 0:00:15]} Nc6 {[%emt 0:00:08]} 4. d4 {[%emt 0:00:21]} cxd4 {[%emt 0:00:08]} 5. Nxd4 {[%emt 0:00:08]} Qc7 {[%emt 0:00:08]} 6. Be2 {[%emt 0:00:17]} a6 {[%emt 0:00:09]} 7. a3 {[%emt 0:00:14]} Nf6 {[%emt 0:00:22]} 8. Be3 {[%emt 0:00:57]} b5 {[%emt 0:05:02]} 9. Nxc6 {[%emt 0:00:23]} dxc6 {[%emt 0:00:47]} 10. f4 {[%emt 0:00:52]} e5 {[%emt 0:11:44]} 11. O-O {[%emt 0:04:55]} Be7 {[%emt 0:05:55]} 12. fxe5 {[%emt 0:04:33] White is slightly better.} Qxe5 {[%emt 0:00:39][%cal Oe7d6]} 13. Kh1 {[%emt 0:08:16]} O-O {[%emt 0:06:27][%cal Oe5e6]} 14. Bf4 {[%emt 0:09:23]} Qe6 {[%emt 0:00:20]} 15. e5 {[%emt 0:01:18]} Rd8 {[%emt 0:06:09]} 16. Qe1 {[%emt 0:04:19]} Nd5 {[%emt 0:02:11]} 17. Nxd5 {[%emt 0:00:29]} Rxd5 {[%emt 0:07:58]} 18. Bd3 {[%emt 0:04:59]} g6 {[%emt 0:03:43]} (18... Bb7 {with more complications.} 19. Qg3 c5 20. Rae1 Rad8) 19. a4 {[%emt 0:03:03]} Bb7 {[%emt 0:02:57]} 20. Be4 {[%emt 0:01:00]} Rd7 {[%emt 0:01:02]} 21. Qe2 {[%emt 0:02:35]} Rad8 {[%emt 0:02:24]} 22. Qf3 {[%emt 0:03:38]} b4 {[%emt 0:03:37]} 23. a5 {[%emt 0:05:03]} Rd4 {[%emt 0:09:19]} (23... Rb8 $11) 24. Be3 $1 $14 {[%emt 0:03:03]} R4d7 {[%emt 0:03:29][%cal Oh7h5]} 25. Qg3 {[%emt 0:09:16] Threatens to win with Bf5.} Qc4 {[%emt 0:04:15]} (25... c5 $6 26. Bf5 Qc4 27. e6 $18) 26. Qf3 {[%emt 0:03:15] White is more active.} (26. Bd3 $16 Rxd3 27. cxd3 Rxd3 28. Rac1) 26... Bf8 {[%emt 0:03:04]} (26... Qe6 $11) 27. Bg5 {[%emt 0:06:59]} Re8 {[%emt 0:00:06]} (27... Be7 $1 $14 28. b3 Qe6) 28. Bf6 $16 {[%emt 0:02:41]} Qb5 {[%emt 0:02:57]} 29. Bf5 $1 $36 {[%emt 0:02:26][%mdl 2048] Keeping Black busy.} Rd5 {[%emt 0:05:09][%mdl 8192]} (29... Rd2 $16 {was called for.}) 30. Bd3 $2 {[%emt 0:01:47]} (30. Bh4 $18 {[%cal Of5g6] is more deadly. Intending Bxg6! and mate.} Rexe5 (30... gxf5 31. Qg3+ Bg7 32. Bf6) 31. Bxg6) 30... Qc5 {[%emt 0:00:01] [#]} (30... Rxd3 $16 31. Qxd3 Qxd3 32. cxd3 c5) 31. Be4 {[%emt 0:03:20]} (31. Bh4 $1 $18 Rd7 32. Rad1) 31... Rd7 {[%emt 0:01:47] [#]} 32. Bf5 $1 {[%emt 0:04:16][%mdl 512]} Rc7 {[%emt 0:00:49][%cal Oe8e5] [#]} 33. Rad1 $1 {[%emt 0:02:17]} Bc8 {[%emt 0:02:39] Dodges Bd7} 34. Bxc8 {[%emt 0:01:49]} Rexc8 {[%emt 0:00:46]} (34... Rcxc8 $16 {keeps fighting.} 35. Rd7 Qc4) 35. Qb3 {[%emt 0:01:31]} (35. e6 $18 Qc4 36. Be5 Qxe6 37. Bxc7 Rxc7 38. Rfe1) 35... Re8 $14 {[%emt 0:02:01][%cal Oc7b7]} 36. Rd2 {[%emt 0:01:44]} Bg7 {[%emt 0:03:21]} 37. Bd8 {[%emt 0:02:08]} (37. Qg3 $11) 37... Rb7 $15 {[%emt 0:00:32]} 38. Bb6 {[%emt 0:00:35] [#]} Qxe5 {[%emt 0:00:43]} (38... Qb5 $1 $17 {[%cal Rb5f1]} 39. Qf3 (39. Rdf2 Re6 $17) 39... h5) 39. Qxb4 $11 {[%emt 0:00:10]} Qxb2 {[%emt 0:01:40]} 40. Qxb2 {[%emt 0:00:00]} Bxb2 {[%emt 0:00:00]} 41. c4 {[%emt 0:05:14]} ({Better is} 41. Rd6 $11) 41... Be5 {[%emt 0:08:23]} 42. g3 {[%emt 0:00:57]} Rbe7 {[%emt 0:00:46]} 43. Bc5 {[%emt 0:01:43]} (43. Rfd1 $11 {keeps the balance.}) 43... Rb7 {[%emt 0:02:20]} (43... Bc3 $1 $17 {[%cal Rc3d2]} 44. Rd3 Re5 (44... Bxa5 45. Bxe7 Rxe7 46. Ra1 $16) (44... Re1 45. Rxe1 Rxe1+ 46. Kg2 $15)) 44. Re1 {[%emt 0:00:56]} f6 {[%emt 0:00:44]} 45. Red1 {[%emt 0:03:30]} Bc3 {[%emt 0:08:42] Blacks defense is rewarded with a draw.   Weighted Error Value: White=0.34/Black=0.32.  Loses game:     	---       	Black=1      Missed win:     	White=1     	---        Mistake:       	White=6     	Black=7      Inaccurate:     	White=5     	Black=5      OK:         	White=13    	Black=13     Best:        	White=1     	---        Strong:       	White=2     	---} 1/2-1/2

[Event "Austrian Bundesliga 2023-24"]
[Site "Austria"]
[Date "2024.03.23"]
[Round "10.23"]
[White "Neyman, Igor"]
[Black "Maiwald, Jens-Uwe"]
[Result "1/2-1/2"]
[ECO "E16"]
[WhiteElo "2302"]
[BlackElo "2438"]
[Annotator "TA"]
[PlyCount "84"]
[EventDate "2023.10.21"]
[EventType "team-tourn"]
[EventCountry "AUT"]
[SourceTitle "playchess.com"]
[Source "ChessBase"]
[SourceQuality "1"]
[TimeControl "40/5400+30:1800+30"]

{[%evp 11,84,0,15,0,21,0,14,4,12,0,12,-10,0,-5,10,0,0,0,2,0,0,0,0,0,0,14,0,-15,36,26,41,50,39,0,0,0,0,0,0,-51,-49,-38,-31,-47,-43,-48,-30,-29,-25,-13,0,-49,-57,-53,-56,-48,-48,-49,-45,-54,-59,-37,0,0,0,-30,-7,-3,0,0,0,-41,-45,-37,-20]} 1. d4 {[%emt 0:00:03]} Nf6 {[%emt 0:00:24]} 2. c4 {[%emt 0:00:14]} e6 {[%emt 0:00:31]} 3. Nf3 {[%emt 0:00:31]} Bb4+ {[%emt 0:00:39]} 4. Bd2 {[%emt 0:01:09]} Qe7 {[%emt 0:01:06]} 5. Qc2 {[%emt 0:01:29]} Bxd2+ {[%emt 0:03:21]} 6. Nbxd2 {[%emt 0:01:47]} d6 {[%emt 0:00:43]} 7. Qc3 {[%emt 0:06:29]} Nbd7 {[%emt 0:05:39]} 8. g3 {[%emt 0:02:23]} b6 {[%emt 0:05:52]} 9. Bg2 {[%emt 0:02:10][%cal Of3e5] Die Stellung ist ausgeglichen.} Bb7 {[%emt 0:00:11]} 10. O-O {[%emt 0:00:50]} O-O {[%emt 0:00:28]} 11. b4 {[%emt 0:02:55]} a5 {[%emt 0:10:30]} 12. a3 {[%emt 0:02:21]} Rfc8 {[%emt 0:02:41]} 13. Nb3 {[%emt 0:05:41]} a4 {[%emt 0:05:33]} 14. Nbd2 {[%emt 0:03:48]} c5 {[%emt 0:02:13]} 15. Rab1 {[%emt 0:14:01]} cxd4 {[%emt 0:19:45]} 16. Qxd4 {[%emt 0:03:55]} Rc7 {[%emt 0:01:27]} 17. e4 {[%emt 0:06:23]} Rac8 {[%emt 0:04:44]} 18. Rfe1 {[%emt 0:02:39]} e5 {[%emt 0:03:47]} 19. Qa1 {[%emt 0:07:08] [#]} b5 {[%emt 0:00:58]} 20. cxb5 $14 {[%emt 0:00:54]} Rc2 {[%emt 0:01:01]} 21. Rbc1 {[%emt 0:05:40]} Nb6 {[%emt 0:00:07]} 22. Qb1 {[%emt 0:08:17]} Qc7 {[%emt 0:00:42]} 23. Rxc2 {[%emt 0:03:04]} Qxc2 {[%emt 0:00:06]} 24. Qxc2 {[%emt 0:03:15]} Rxc2 {[%emt 0:00:02]} 25. h3 {[%emt 0:00:52]} (25. Rd1 $11) 25... Kf8 $1 $15 {[%emt 0:01:10][%mdl 1024] Schwarz hat Kompensation.} 26. Re3 {[%emt 0:01:54]} Ke7 {[%emt 0:09:35]} 27. Bf1 {[%emt 0:00:56]} Rc1 {[%emt 0:05:51]} 28. Kg2 {[%emt 0:00:42]} g6 {[%emt 0:00:18]} 29. Bd3 {[%emt 0:01:56]} Ne8 {[%emt 0:02:01]} 30. Nb1 {[%emt 0:02:05]} Nf6 {[%emt 0:10:31][%cal Of6e4] ...Nxe4! ist eine echte Drohung.} 31. Nfd2 {[%emt 0:01:50]} (31. Nbd2 $1 $11 {ist eher angebracht.}) 31... d5 {[%emt 0:01:03] [#] Und jetzt ...dxe4 wäre schön.} 32. f3 {[%emt 0:00:46]} ({Falsch wäre} 32. exd5 $2 Nfxd5 (32... Bxd5+ 33. f3 $11) 33. Rxe5+ Kf6 $19) 32... d4 {[%emt 0:00:27]} 33. Re2 {[%emt 0:00:12]} Ne8 {[%emt 0:01:18]} 34. Kf2 {[%emt 0:00:35]} Nd6 {[%emt 0:00:15]} 35. Re1 {[%emt 0:00:14]} Rxe1 {[%emt 0:01:27]} 36. Kxe1 {[%emt 0:00:06]} Bc8 {[%emt 0:00:06]} 37. h4 {[%emt 0:00:23]} Bd7 {[%emt 0:00:04][%cal Of7f6]} 38. Ke2 {[%emt 0:00:26]} f6 {[%emt 0:01:26]} 39. f4 {[%emt 0:01:54]} Nxb5 {[%emt 0:00:52]} 40. fxe5 {[%emt 0:00:00]} fxe5 {[%emt 0:00:00]} 41. Nc4 {[%emt 0:06:06]} Nxc4 {[%emt 0:01:38]} 42. Bxc4 {[%emt 0:01:36]} Nd6 {[%emt 0:02:17] Gewichteter Fehlerwert: Weiß=0.11 (sehr präzise) /Schwarz=0.07 (makellos) .  Fehler:       	Weiß=2     	Schwarz=1     Ungenau:       	Weiß=3     	Schwarz=1     OK:         	Weiß=16    	Schwarz=15    Bester:       	Weiß=1     	Schwarz=1     Stark:        	---       	Schwarz=1} 1/2-1/2

[Event "Austrian Bundesliga 2023-24"]
[Site "Austria"]
[Date "2024.03.23"]
[Round "10.24"]
[White "Platzgummer, Fabian"]
[Black "Kranz, Armin"]
[Result "1-0"]
[ECO "D02"]
[WhiteElo "2304"]
[BlackElo "2062"]
[Annotator "RC"]
[PlyCount "65"]
[EventDate "2023.10.21"]
[EventType "team-tourn"]
[EventCountry "AUT"]
[SourceTitle "playchess.com"]
[Source "ChessBase"]
[SourceQuality "1"]
[TimeControl "40/5400+30:1800+30"]

1. Nf3 {[%emt 0:00:05]} d5 {[%emt 0:00:14]} 2. d4 {[%emt 0:00:55]} Nf6 {[%emt 0:00:26]} 3. c4 {[%emt 0:01:02]} e6 {[%emt 0:00:18]} 4. g3 {[%emt 0:00:35]} Bb4+ {[%emt 0:00:57]} 5. Bd2 {[%emt 0:00:23]} a5 {[%emt 0:00:45]} 6. Qc2 {[%emt 0:01:28]} O-O {[%emt 0:11:44]} 7. Bg2 {[%emt 0:00:49]} dxc4 {[%emt 0:03:12]} 8. Qxc4 {[%emt 0:04:38]} Nc6 {[%emt 0:04:06]} 9. a3 {[%emt 0:11:42]} Qd5 {[%emt 0:07:38]} 10. Qd3 {[%emt 0:03:16]} Bxd2+ {[%emt 0:05:41]} 11. Qxd2 {[%emt 0:02:34]} Rd8 {[%emt 0:06:18]} 12. Nc3 {[%emt 0:06:30]} Qb3 {[%emt 0:09:23]} 13. e4 {[%emt 0:12:11]} e5 {[%emt 0:09:39]} 14. d5 {[%emt 0:01:12]} Bg4 {[%emt 0:01:09]} 15. Nh4 {[%emt 0:14:15]} Nd4 {[%emt 0:03:17]} 16. O-O {[%emt 0:00:19]} Qc4 {[%emt 0:06:20]} 17. h3 {[%emt 0:11:09]} Bh5 {[%emt 0:11:20]} 18. g4 {[%emt 0:13:02]} Bg6 {[%emt 0:05:10]} 19. Rad1 {[%emt 0:00:52]} c6 {[%emt 0:04:09]} 20. f4 {[%emt 0:08:04]} Nb3 {[%emt 0:00:29]} 21. Qf2 {[%emt 0:00:10]} exf4 {[%emt 0:00:29]} 22. Qxf4 {[%emt 0:01:22]} cxd5 {[%emt 0:02:45]} 23. Nxg6 {[%emt 0:01:06]} fxg6 {[%emt 0:01:22]} 24. Nxd5 {[%emt 0:00:44]} Nxd5 {[%emt 0:01:58]} 25. Qf7+ {[%emt 0:00:32]} Kh8 {[%emt 0:00:04]} 26. Rxd5 {[%emt 0:00:07]} Rg8 {[%emt 0:01:39]} 27. Rfd1 {[%emt 0:03:23]} Nc5 {[%emt 0:00:27]} 28. Qc7 {[%emt 0:00:34]} b6 {[%emt 0:01:12]} 29. Qxb6 {[%emt 0:00:35]} Na4 {[%emt 0:00:22]} 30. Qb7 {[%emt 0:00:44]} h6 {[%emt 0:00:40]} 31. b3 {[%emt 0:00:30]} Nc5 {[%emt 0:00:52]} 32. Qxa8 {[%emt 0:00:43]} Qc3 {[%emt 0:00:52]} 33. Rd8 {[%emt 0:00:32]} 1-0

[Event "Austrian Bundesliga 2023-24"]
[Site "Austria"]
[Date "2024.03.23"]
[Round "10.25"]
[White "Baldauf, Marco"]
[Black "Kadric, Denis"]
[Result "1/2-1/2"]
[ECO "B07"]
[WhiteElo "2481"]
[BlackElo "2560"]
[Annotator "TA"]
[PlyCount "68"]
[EventDate "2023.10.21"]
[EventType "team-tourn"]
[EventCountry "AUT"]
[SourceTitle "playchess.com"]
[Source "ChessBase"]
[SourceQuality "1"]
[TimeControl "40/5400+30:1800+30"]

{[%evp 17,68,42,44,28,27,33,28,16,24,8,24,6,10,14,50,51,34,23,17,27,45,56,56,16,27,0,0,-16,8,-15,-9,-36,-21,-23,-25,-23,-26,-25,-4,-4,0,0,0,0,0,0,0,0,0,0,0,0,0]} 1. d4 {[%emt 0:00:04]} d6 {[%emt 0:00:04]} 2. e4 {[%emt 0:00:08]} Nf6 {[%emt 0:00:06]} 3. Nc3 {[%emt 0:00:04]} Nbd7 {[%emt 0:00:39]} 4. Nf3 {[%emt 0:00:57]} e5 {[%emt 0:00:02]} 5. Bc4 {[%emt 0:00:05]} Be7 {[%emt 0:00:12]} 6. a4 {[%emt 0:00:06]} O-O {[%emt 0:00:03]} 7. O-O {[%emt 0:00:05]} c6 {[%emt 0:00:06]} 8. h3 {[%emt 0:01:37]} h6 {[%emt 0:00:06]} 9. Re1 {[%emt 0:00:11]} Re8 {[%emt 0:00:04]} 10. Be3 {[%emt 0:02:06]} exd4 {[%emt 0:00:27]} 11. Qxd4 {[%emt 0:00:37]} Nf8 {[%emt 0:00:19]} 12. Rad1 {[%emt 0:00:20] aiming for e5. White has an edge.} Be6 {[%emt 0:01:28]} 13. Bf4 {[%emt 0:00:43]} a6 {[%emt 0:01:44]} 14. b3 {[%emt 0:03:31][%cal Rf4d6]} Qa5 {[%emt 0:36:58]} 15. b4 {[%emt 0:03:09]} Qxb4 {[%emt 0:00:43]} 16. Bxe6 {[%emt 0:02:10]} Qxd4 {[%emt 0:00:02]} 17. Bxf7+ {[%emt 0:00:06]} Kxf7 {[%emt 0:00:02]} 18. Nxd4 {[%emt 0:00:08]} Ne6 {[%emt 0:00:06]} 19. Nxe6 {[%emt 0:17:58]} Kxe6 {[%emt 0:00:03]} 20. Ne2 {[%emt 0:00:06]} Kf7 {[%emt 0:03:51]} 21. Nc3 {[%emt 0:10:51]} Rad8 {[%emt 0:01:12]} 22. Rd3 {[%emt 0:00:55]} Bf8 {[%emt 0:02:29]} 23. Kf1 {[%emt 0:04:21]} b5 {[%emt 0:07:46]} 24. axb5 {[%emt 0:01:18]} axb5 {[%emt 0:00:07]} 25. e5 {[%emt 0:08:14]} dxe5 {[%emt 0:00:02]} 26. Rxd8 {[%emt 0:00:06]} Rxd8 {[%emt 0:00:02]} 27. Bxe5 {[%emt 0:00:07]} Nd7 {[%emt 0:02:46]} 28. Rd1 {[%emt 0:03:17] The position is equal.} Ke6 {[%emt 0:00:04]} 29. Bh2 {[%emt 0:02:50]} Be7 {[%emt 0:10:05]} 30. Ne2 {[%emt 0:04:31] [#] Nd4+ would now be deadly.} Nc5 {[%emt 0:03:40][%cal Rd8d1]} 31. Nd4+ {[%emt 0:06:50]} Kf7 {[%emt 0:00:04] Threatens to win with ...Ne6.} 32. Ke2 {[%emt 0:00:11]} Re8 {[%emt 0:04:28] Strongly threatening ...Bd6+.} 33. Kf3 {[%emt 0:01:04]} Rd8 {[%emt 0:00:23] [#] ...Ne6 is the strong threat.} 34. Ke2 {[%emt 0:00:12]} Re8 {[%emt 0:00:04] Weighted Error Value: White=0.10 (very precise) /Black=0.05 (flawless) .  Inaccurate:     	White=3     	Black=1      OK:         	White=13    	Black=10     Best:        	White=1     	Black=3} 1/2-1/2

[Event "Austrian Bundesliga 2023-24"]
[Site "Austria"]
[Date "2024.03.23"]
[Round "10.26"]
[White "Erdos, Viktor"]
[Black "Prusikin, Michael"]
[Result "1/2-1/2"]
[ECO "E04"]
[WhiteElo "2552"]
[BlackElo "2508"]
[Annotator "TA"]
[PlyCount "57"]
[EventDate "2023.10.21"]
[EventType "team-tourn"]
[EventCountry "AUT"]
[SourceTitle "playchess.com"]
[Source "ChessBase"]
[SourceQuality "1"]
[TimeControl "40/5400+30:1800+30"]

{[%evp 12,57,18,23,12,18,18,14,12,13,10,14,38,25,7,0,0,0,12,14,14,18,26,12,22,5,0,13,0,0,14,9,0,0,0,0,0,0,0,0,0,0,0,0,0,0,0,0]} 1. d4 {[%emt 0:00:07]} d5 {[%emt 0:00:04]} 2. Nf3 {[%emt 0:00:08]} Nf6 {[%emt 0:00:05]} 3. c4 {[%emt 0:00:04]} e6 {[%emt 0:00:03]} 4. g3 {[%emt 0:00:04]} dxc4 {[%emt 0:00:16]} 5. Bg2 {[%emt 0:00:06]} c5 {[%emt 0:00:03]} 6. O-O {[%emt 0:00:07]} Nc6 {[%emt 0:00:03]} 7. dxc5 {[%emt 0:00:14]} Qxd1 {[%emt 0:00:15]} 8. Rxd1 {[%emt 0:00:16]} Bxc5 {[%emt 0:00:17]} 9. Nfd2 {[%emt 0:00:15]} Na5 {[%emt 0:00:47]} 10. Na3 {[%emt 0:00:42]} Bxa3 {[%emt 0:00:26]} 11. bxa3 {[%emt 0:00:05]} Bd7 {[%emt 0:04:27]} 12. Bb2 {[%emt 0:00:12][%mdl 1024] White has compensation.} Rc8 {[%emt 0:04:41] [#] Hoping for ...c3.} 13. Rdc1 {[%emt 0:00:32]} b6 {[%emt 0:06:59]} 14. Bc3 {[%emt 0:09:57] This pair of bishops is nice.} Rc7 {[%emt 0:13:44]} 15. Rab1 {[%emt 0:05:07]} O-O {[%emt 0:03:32]} 16. Bxa5 {[%emt 0:01:01]} bxa5 {[%emt 0:00:05]} 17. Nxc4 {[%emt 0:00:39][%cal Bd2c4,Bc4a5,Ba5b3,Bb3c5][%mdl 32]} g5 {[%emt 0:12:57] The position is equal.} 18. Nxa5 {[%emt 0:16:47]} Rfc8 {[%emt 0:00:48][%cal Bf8c8,Bc8c4,Bc4a4,Ba4a3][%mdl 32]} 19. Nb3 {[%emt 0:00:06]} Rc2 {[%emt 0:09:07]} 20. Bb7 {[%emt 0:00:20][%cal Bg2b7,Bb7a6,Ba6c4][%mdl 32]} R8c4 {[%emt 0:00:27]} 21. Ba6 {[%emt 0:07:42]} Rxc1+ {[%emt 0:01:32]} 22. Rxc1 {[%emt 0:00:12]} Ra4 {[%emt 0:01:13][%csl LRa3,LRa6]} 23. Nc5 {[%emt 0:02:48]} Rxa3 {[%emt 0:00:19]} 24. Bc4 {[%emt 0:03:06]} Kf8 {[%emt 0:03:46]} 25. Nxd7+ {[%emt 0:07:44]} Nxd7 {[%emt 0:00:02]} 26. Bb3 {[%emt 0:02:02]} Ra5 {[%emt 0:08:19]} 27. Rc7 {[%emt 0:06:59]} Nc5 {[%emt 0:01:21]} 28. Kg2 {[%emt 0:01:24]} Nxb3 {[%emt 0:01:05]} 29. axb3 {A rather calm draw.   Weighted Error Value: White=0.02 (flawless) /Black=0.02 (flawless) .  OK:         	White=10    	Black=15     Best:        	White=1     	---} 1/2-1/2

[Event "Austrian Bundesliga 2023-24"]
[Site "Austria"]
[Date "2024.03.23"]
[Round "10.27"]
[White "Berchtenbreiter, Maximilian"]
[Black "Ivanisevic, Ivan"]
[Result "1-0"]
[ECO "C79"]
[WhiteElo "2486"]
[BlackElo "2523"]
[Annotator "RC"]
[PlyCount "81"]
[EventDate "2023.10.21"]
[EventType "team-tourn"]
[EventCountry "AUT"]
[SourceTitle "playchess.com"]
[Source "ChessBase"]
[SourceQuality "1"]
[TimeControl "40/5400+30:1800+30"]

1. e4 {[%emt 0:00:14]} e5 {[%emt 0:00:06]} 2. Nf3 {[%emt 0:00:06]} Nc6 {[%emt 0:00:05]} 3. Bb5 {[%emt 0:00:05]} a6 {[%emt 0:00:05]} 4. Ba4 {[%emt 0:00:04]} Nf6 {[%emt 0:00:06]} 5. O-O {[%emt 0:00:08]} d6 {[%emt 0:00:03]} 6. Re1 {[%emt 0:00:21]} Bd7 {[%emt 0:00:07]} 7. c3 {[%emt 0:00:30]} g6 {[%emt 0:00:06]} 8. d4 {[%emt 0:01:36]} Bg7 {[%emt 0:00:07]} 9. Nbd2 {[%emt 0:11:11]} O-O {[%emt 0:01:08]} 10. Nf1 {[%emt 0:00:21]} exd4 {[%emt 0:07:19]} 11. cxd4 {[%emt 0:00:06]} Nb4 {[%emt 0:00:40]} 12. Bb3 {[%emt 0:04:13]} Bg4 {[%emt 0:18:41]} 13. h3 {[%emt 0:15:16]} Bxf3 {[%emt 0:00:13]} 14. Qxf3 {[%emt 0:00:03]} Nd7 {[%emt 0:00:25]} 15. Be3 {[%emt 0:01:01]} a5 {[%emt 0:12:31]} 16. a3 {[%emt 0:00:46]} Nc6 {[%emt 0:02:31]} 17. Rad1 {[%emt 0:00:25]} a4 {[%emt 0:00:17]} 18. Ba2 {[%emt 0:01:36]} Kh8 {[%emt 0:07:06]} 19. Ng3 {[%emt 0:02:02]} Nb6 {[%emt 0:01:37]} 20. d5 {[%emt 0:21:58]} Ne5 {[%emt 0:06:30]} 21. Qe2 {[%emt 0:00:06]} Qh4 {[%emt 0:00:05]} 22. Bd4 {[%emt 0:07:55]} Nbd7 {[%emt 0:09:08]} 23. Qe3 {[%emt 0:07:53]} Rae8 {[%emt 0:04:44]} 24. Bb1 {[%emt 0:09:35]} f5 {[%emt 0:18:48]} 25. exf5 {[%emt 0:00:30]} Nf6 {[%emt 0:00:22]} 26. Bc3 {[%emt 0:01:41]} g5 {[%emt 0:03:09]} 27. Ne2 {[%emt 0:06:46]} g4 {[%emt 0:02:23]} 28. Qg3 {[%emt 0:00:36]} Qxg3 {[%emt 0:01:04]} 29. fxg3 {[%emt 0:01:40]} gxh3 {[%emt 0:00:06]} 30. Nf4 {[%emt 0:00:17]} h2+ {[%emt 0:03:22]} 31. Kxh2 {[%emt 0:00:05]} Rg8 {[%emt 0:00:03]} 32. Ne6 {[%emt 0:01:17]} Nfg4+ {[%emt 0:00:06]} 33. Kg1 {[%emt 0:00:07]} Bh6 {[%emt 0:00:27]} 34. Rd4 {[%emt 0:04:58]} Nf6 {[%emt 0:01:23]} 35. Rh4 {[%emt 0:00:20]} Bg5 {[%emt 0:00:20]} 36. Rxe5 {[%emt 0:00:41]} dxe5 {[%emt 0:01:11]} 37. Bxe5 {[%emt 0:00:44]} Bxh4 {[%emt 0:01:55]} 38. gxh4 {[%emt 0:00:03]} Ref8 {[%emt 0:00:09]} 39. Nxf8 {[%emt 0:01:20]} Rxf8 {[%emt 0:00:05]} 40. g4 {[%emt 0:00:00]} Kg8 {[%emt 0:00:00]} 41. Ba2 {[%emt 0:00:07]} 1-0